bitfinex/quotes_BTCUSD_20240712
["timestamp","ask_amount","ask_price","bid_price","bid_amount"]
[1720754220031,0.26262525,57225.0,57224.0,0.18988799]
[1720754220236,0.26262525,57225.0,57224.0,0.007]
[1720754220237,0.60279225,57225.0,57224.0,0.007]
[1720754220448,0.60279225,57225.0,57224.0,0.011]
[1720754220449,1.09208825,57225.0,57224.0,0.011]
[1720754220653,0.99656925,57225.0,57224.0,0.011]
[1720754220882,0.99656925,57225.0,57224.0,0.1069467]
[1720754220883,0.75192125,57225.0,57224.0,0.1069467]
[1720754221121,0.75192125,57225.0,57224.0,0.19388799]
[1720754221275,0.50727325,57225.0,57224.0,0.19388799]
[1720754221682,0.50727325,57225.0,57224.0,0.011]
[1720754221881,0.75192125,57225.0,57224.0,0.1069467]
[1720754222921,0.99656925,57225.0,57224.0,0.011]
[1720754223142,0.956268,57225.0,57224.0,0.1069467]
[1720754223385,0.956268,57225.0,57224.0,0.19388799]
[1720754223386,0.50718183,57225.0,57224.0,0.19388799]
[1720754223587,0.50718469,57225.0,57224.0,0.19388799]
[1720754223911,0.50718469,57225.0,57224.0,0.18988799]
[1720754225171,0.75183269,57225.0,57224.0,0.0959467]
[1720754225570,0.75266968,57225.0,57224.0,0.18288799]
[1720754225930,0.50802168,57225.0,57224.0,0.20362489]
[1720754226076,0.50802168,57225.0,57224.0,0.22810589]
[1720754226251,0.50802168,57225.0,57224.0,0.30810589]
[1720754226456,0.50806502,57225.0,57224.0,0.30810589]
[1720754226652,0.53303984,57225.0,57224.0,0.30710589]
[1720754227508,0.16606784,57225.0,57224.0,0.30710589]
[1720754227711,0.06606784,57225.0,57224.0,0.28636899]
[1720754228119,0.03210885,57225.0,57224.0,0.28636899]
[1720754228644,0.07317105,57225.0,57224.0,0.28636899]
[1720754229058,0.07317105,57225.0,57224.0,0.28936899]
[1720754229059,0.08401299,57225.0,57224.0,0.28936899]
[1720754229262,0.20633699,57225.0,57224.0,0.26488799]
[1720754229397,0.30633699,57225.0,57224.0,0.26188799]
[1720754229599,0.18401299,57225.0,57224.0,0.28636899]
[1720754229799,0.30633699,57225.0,57224.0,0.29436899]
[1720754230000,0.25443285,57225.0,57224.0,0.28636899]
[1720754230208,0.29577247,57225.0,57224.0,0.29136899]
[1720754230413,0.17344847,57225.0,57224.0,0.29836899]
[1720754230983,0.17344847,57225.0,57224.0,0.29336899]
[1720754231226,0.07344847,57225.0,57224.0,0.29536899]
[1720754232679,0.07344847,57225.0,57224.0,0.28636899]
[1720754233132,0.07344847,57225.0,57224.0,0.29436899]
[1720754233601,0.07273049,57225.0,57224.0,0.29436899]
[1720754233837,0.07273049,57225.0,57224.0,0.28636899]
[1720754234069,0.07273049,57225.0,57224.0,0.28936899]
[1720754234070,0.07272936,57225.0,57224.0,0.28936899]
[1720754235001,0.07272936,57225.0,57224.0,0.37990589]
[1720754235207,0.06559533,57225.0,57224.0,0.37990589]
[1720754235458,0.07273142,57225.0,57224.0,0.35096899]
[1720754235670,0.07273142,57225.0,57224.0,0.35596899]
[1720754236014,0.06559533,57225.0,57224.0,0.35096899]
[1720754236370,0.06559533,57225.0,57224.0,0.35696899]
[1720754236509,0.06559533,57225.0,57224.0,0.36396899]
[1720754236968,0.03211075,57225.0,57224.0,0.41236589]
[1720754237357,0.07317369,57225.0,57224.0,0.41236589]
[1720754239239,0.07317369,57225.0,57224.0,0.36396899]
[1720754240509,0.03211075,57225.0,57224.0,0.36396899]
[1720754240715,0.07313119,57225.0,57224.0,0.36396899]
[1720754241146,0.07313119,57225.0,57224.0,0.48396899]
[1720754241351,0.08397093,57225.0,57224.0,0.48396899]
[1720754241563,0.05186018,57225.0,57224.0,0.55311002]
[1720754241766,0.1,57235.0,57233.0,0.024481]
[1720754241975,0.05289604,57234.0,57233.0,0.18662229]
[1720754242186,0.05289604,57234.0,57233.0,0.28256899]
[1720754242960,0.06003523,57234.0,57233.0,0.28256899]
[1720754243575,0.42694823,57234.0,57233.0,0.0959467]
[1720754243793,0.67105789,57234.0,57233.0,0.0959467]
[1720754244033,1.01566689,57234.0,57233.0,0.0959467]
[1720754244172,1.01566689,57234.0,57226.0,0.04028445]
[1720754244173,0.611597,57227.0,57226.0,0.04028445]
[1720754244374,0.611597,57227.0,57224.0,0.04028445]
[1720754244375,0.366972,57225.0,57224.0,0.04028445]
[1720754244630,0.76374888,57225.0,57224.0,0.04028445]
[1720754244782,0.77089313,57225.0,57224.0,0.04028445]
[1720754245401,0.77089313,57225.0,57218.0,0.04028445]
[1720754245402,0.095519,57224.0,57218.0,0.04028445]
[1720754245739,0.095519,57224.0,57218.0,0.15170674]
[1720754245740,0.367009,57219.0,57218.0,0.15170674]
[1720754245903,0.367009,57219.0,57218.0,0.18106741]
[1720754245904,0.51913788,57219.0,57218.0,0.18106741]
[1720754246109,0.52676442,57219.0,57218.0,0.18106741]
[1720754246321,0.244682,57217.0,57216.0,0.08694129]
[1720754246525,0.39729323,57217.0,57216.0,0.12722574]
[1720754246767,0.52677832,57217.0,57216.0,0.12722574]
[1720754247213,0.52687896,57217.0,57216.0,0.12722574]
[1720754247771,0.52687896,57217.0,57216.0,0.15870674]
[1720754247976,0.15985596,57217.0,57216.0,0.15870674]
[1720754248134,0.28219696,57217.0,57216.0,0.15870674]
[1720754248335,0.15985596,57217.0,57216.0,0.15870674]
[1720754249161,0.05985596,57217.0,57216.0,0.15870674]
[1720754249544,0.18219696,57217.0,57216.0,0.15870674]
[1720754249737,0.18219696,57217.0,57216.0,0.16370674]
[1720754249738,0.28219696,57217.0,57216.0,0.16370674]
[1720754249964,0.28219696,57217.0,57216.0,0.13922574]
[1720754250213,0.52687896,57217.0,57216.0,0.13922574]
[1720754250609,0.52689041,57217.0,57216.0,0.13222574]
[1720754251032,0.52689041,57217.0,57216.0,0.011]
[1720754251033,1.01625441,57217.0,57216.0,0.011]
[1720754251207,1.01625441,57217.0,57216.0,0.04628445]
[1720754251609,1.01625441,57217.0,57216.0,0.05028445]
[1720754251785,1.01625441,57217.0,57216.0,0.13722574]
[1720754252006,1.01625441,57217.0,57216.0,0.01]
[1720754252530,1.01625441,57217.0,57216.0,0.05028445]
[1720754253872,0.15986741,57217.0,57216.0,0.17787741]
[1720754254110,0.15986741,57217.0,57216.0,0.16170674]
[1720754254111,0.22948509,57217.0,57216.0,0.16170674]
[1720754254305,0.28216966,57217.0,57216.0,0.16170674]
[1720754254426,0.28231426,57217.0,57216.0,0.16170674]
[1720754255898,0.15997326,57217.0,57216.0,0.16170674]
[1720754256122,0.15997326,57217.0,57216.0,0.30430674]
[1720754256342,0.05997326,57217.0,57216.0,0.30430674]
[1720754256556,0.05992851,57217.0,57216.0,0.46673741]
[1720754256761,0.05992851,57217.0,57216.0,0.42430674]
[1720754256870,0.05992851,57217.0,57216.0,0.54664974]
[1720754257249,0.01083,57217.0,57216.0,1.12113609]
[1720754257457,0.00083,57236.0,57234.0,0.08694129]
[1720754257458,0.366907,57235.0,57234.0,0.08694129]
[1720754257646,0.40811928,57235.0,57234.0,0.08694129]
[1720754258057,0.41524539,57235.0,57234.0,0.08694129]
[1720754258277,0.122307,57233.0,57232.0,0.08694129]
[1720754258476,0.40813328,57233.0,57232.0,0.04028445]
[1720754258684,0.65274728,57233.0,57232.0,0.04028445]
[1720754258885,0.65274728,57233.0,57230.0,0.08694129]
[1720754258886,0.366933,57231.0,57230.0,0.04028445]
[1720754259090,0.75276728,57231.0,57230.0,0.04028445]
[1720754259293,0.366939,57230.0,57229.0,0.04028445]
[1720754259500,0.75277728,57230.0,57229.0,0.15170674]
[1720754259618,0.51528484,57230.0,57229.0,0.15170674]
[1720754260275,0.52611529,57230.0,57229.0,0.04028445]
[1720754260478,0.77074129,57230.0,57229.0,0.04028445]
[1720754260855,0.71869856,57230.0,57229.0,0.04028445]
[1720754261061,0.77092477,57230.0,57229.0,0.04028445]
[1720754261950,0.55149663,57230.0,57229.0,0.04028445]
[1720754262160,0.366958,57227.0,57226.0,0.00691886]
[1720754262361,1.00846221,57227.0,57226.0,0.00691886]
[1720754262786,1.01559563,57227.0,57226.0,0.00691886]
[1720754263546,1.01559563,57227.0,57226.0,0.00991886]
[1720754264023,0.244656,57223.0,57219.0,0.08694129]
[1720754264243,0.367003,57220.0,57219.0,0.08694129]
[1720754264442,0.76409511,57220.0,57219.0,0.08694129]
[1720754264646,0.77122577,57220.0,57219.0,0.08694129]
[1720754264870,0.77123019,57220.0,57219.0,0.08694129]
[1720754265780,0.77123019,57220.0,57219.0,0.08994129]
[1720754267234,0.77123019,57220.0,57219.0,0.08694129]
[1720754267668,0.77123019,57220.0,57219.0,0.08794129]
[1720754267873,0.77144284,57220.0,57219.0,0.08794129]
[1720754268429,0.77144284,57220.0,57219.0,0.001]
[1720754270132,0.77144284,57220.0,57219.0,0.08794129]
[1720754270489,0.77144284,57220.0,57219.0,0.001]
[1720754271276,0.77144284,57220.0,57219.0,0.08794129]
[1720754271482,0.7606149,57220.0,57219.0,0.08794129]
[1720754271730,0.5159459,57220.0,57219.0,0.11242229]
[1720754272285,0.54165612,57220.0,57219.0,0.11242229]
[1720754274210,0.29698712,57220.0,57219.0,0.11242229]
[1720754274686,0.13284088,57220.0,57219.0,0.17332229]
[1720754274896,0.07377586,57220.0,57219.0,0.17332229]
[1720754275023,0.07377614,57220.0,57219.0,0.17332229]
[1720754275463,0.07377614,57220.0,57219.0,0.37522229]
[1720754275785,0.06664548,57220.0,57219.0,0.37522229]
[1720754275965,0.06664548,57220.0,57219.0,0.43393127]
[1720754276748,0.06664548,57220.0,57219.0,0.38122229]
[1720754276749,0.06764548,57220.0,57219.0,0.38122229]
[1720754276950,0.02671022,57220.0,57219.0,0.38122229]
[1720754277147,0.02671022,57220.0,57219.0,0.38022229]
[1720754277377,0.02571022,57220.0,57219.0,0.37422229]
[1720754277576,0.00797483,57220.0,57219.0,0.43227647]
[1720754277778,0.04997425,57220.0,57219.0,0.44227647]
[1720754278098,0.04197591,57220.0,57219.0,0.43427647]
[1720754278298,0.04197591,57220.0,57219.0,0.44934]
[1720754278500,0.04197591,57220.0,57219.0,0.27928582]
[1720754278703,0.04197591,57220.0,57219.0,0.26422229]
[1720754278926,0.04995073,57220.0,57219.0,0.26422229]
[1720754279129,0.04995073,57220.0,57219.0,0.27822229]
[1720754279496,0.16078505,57220.0,57219.0,0.27822229]
[1720754280439,0.15978505,57220.0,57219.0,0.26822229]
[1720754280638,0.15978505,57220.0,57219.0,0.37422229]
[1720754280847,0.16078505,57220.0,57219.0,0.38722229]
[1720754281052,0.16143913,57220.0,57219.0,0.27922229]
[1720754281226,0.16043913,57220.0,57219.0,0.26622229]
[1720754281683,0.16143913,57220.0,57219.0,0.27622229]
[1720754281885,0.06143913,57220.0,57219.0,0.26422229]
[1720754282089,0.18377313,57220.0,57219.0,0.18684129]
[1720754282294,0.77211113,57220.0,57219.0,0.008]
[1720754282473,0.367023,57217.0,57216.0,0.000913]
[1720754282681,0.75333463,57217.0,57216.0,0.000913]
[1720754282851,0.76131002,57217.0,57216.0,0.000913]
[1720754283425,0.51662802,57217.0,57216.0,0.000913]
[1720754283742,0.51662802,57217.0,57216.0,0.08785429]
[1720754283976,0.51608534,57217.0,57216.0,0.000913]
[1720754284206,0.51608533,57217.0,57216.0,0.09908782]
[1720754284751,0.51708533,57217.0,57216.0,0.12108782]
[1720754285366,0.15006233,57217.0,57216.0,0.13433529]
[1720754285571,0.15006233,57217.0,57216.0,0.26443529]
[1720754285786,0.14906233,57217.0,57216.0,0.25443529]
[1720754285944,0.14906233,57217.0,57216.0,0.25943529]
[1720754286342,0.10797539,57217.0,57216.0,0.50177829]
[1720754286584,0.14910658,57217.0,57216.0,0.37943529]
[1720754286790,0.14113119,57217.0,57216.0,0.37943529]
[1720754286992,0.14113119,57217.0,57216.0,0.25943529]
[1720754287443,0.14868742,57217.0,57216.0,0.25943529]
[1720754287586,0.14868742,57217.0,57216.0,0.25443529]
[1720754288027,0.14868742,57217.0,57216.0,0.38243529]
[1720754288332,0.0486076,57217.0,57216.0,0.25743529]
[1720754288536,0.0486076,57217.0,57216.0,0.26543529]
[1720754288721,0.04064037,57217.0,57216.0,0.26543529]
[1720754288922,0.0496076,57217.0,57216.0,0.26243529]
[1720754289384,0.0496076,57217.0,57216.0,0.27343529]
[1720754289385,0.04164037,57217.0,57216.0,0.27343529]
[1720754289519,0.04064037,57217.0,57216.0,0.26543529]
[1720754289718,0.0486076,57217.0,57216.0,0.26543529]
[1720754289915,0.0496076,57217.0,57216.0,0.27343529]
[1720754290951,0.04937953,57217.0,57216.0,0.27343529]
[1720754291159,0.04937953,57217.0,57216.0,0.26243529]
[1720754291568,0.04837953,57217.0,57216.0,0.25443529]
[1720754292028,0.04937953,57217.0,57216.0,0.27343529]
[1720754292163,0.04937953,57217.0,57216.0,0.26243529]
[1720754292713,0.04937953,57217.0,57216.0,0.27343529]
[1720754293659,0.04937953,57217.0,57216.0,0.39343529]
[1720754294133,0.0414123,57217.0,57216.0,0.39343529]
[1720754294343,0.244648,57226.0,57225.0,0.11142229]
[1720754294344,0.21850847,57226.0,57225.0,0.11142229]
[1720754294749,0.22647271,57226.0,57225.0,0.11142229]
[1720754295390,0.03329865,57226.0,57225.0,0.12256452]
[1720754295584,0.03329865,57226.0,57225.0,0.20446452]
[1720754295743,0.15862065,57226.0,57225.0,0.20446452]
[1720754296182,0.15862065,57226.0,57225.0,0.19332229]
[1720754296384,0.25862065,57226.0,57225.0,0.19332229]
[1720754296547,0.25862065,57226.0,57220.0,0.00349489]
[1720754296548,0.122324,57225.0,57224.0,0.08694129]
[1720754296763,0.466972,57225.0,57224.0,0.08694129]
[1720754296965,0.4749362,57225.0,57224.0,0.08694129]
[1720754298595,0.7195842,57225.0,57224.0,0.08694129]
[1720754299308,0.7215842,57225.0,57224.0,0.08694129]
[1720754302117,0.7215842,57225.0,57224.0,0.11142229]
[1720754302323,0.14519388,57225.0,57224.0,0.13075452]
[1720754302450,0.14519388,57225.0,57224.0,0.19345452]
[1720754302647,0.14519388,57225.0,57224.0,0.27065452]
[1720754303157,0.244618,57232.0,57224.0,0.27371805]
[1720754303350,0.070896,57233.0,57232.0,0.25132229]
[1720754303351,0.00083,57233.0,57232.0,0.25132229]
[1720754303773,0.00083,57233.0,57232.0,0.37481643]
[1720754303928,0.00083,57233.0,57232.0,0.25481643]
[1720754304092,0.02633658,57233.0,57232.0,0.37481643]
[1720754304291,0.00083,57233.0,57232.0,0.37481643]
[1720754304693,0.00083,57233.0,57232.0,0.25481643]
[1720754305638,0.00083,57233.0,57232.0,0.31334756]
[1720754305834,0.00083,57233.0,57232.0,0.16995342]
[1720754306038,0.00083,57233.0,57232.0,0.11142229]
[1720754306862,0.00083,57233.0,57232.0,0.12042229]
[1720754307058,0.00083,57233.0,57232.0,0.13142229]
[1720754307399,0.00083,57233.0,57232.0,0.11142229]
[1720754307944,0.00083,57233.0,57232.0,0.12742229]
[1720754308463,0.00083,57233.0,57232.0,0.14811087]
[1720754308661,0.00083,57233.0,57232.0,0.12742229]
[1720754309835,0.00083,57233.0,57232.0,0.26552229]
[1720754310165,0.00083,57233.0,57232.0,0.38552229]
[1720754310321,0.00083,57233.0,57232.0,0.26552229]
[1720754310570,0.01384183,57233.0,57232.0,0.26552229]
[1720754310779,0.00083,57233.0,57232.0,0.26552229]
[1720754310976,0.01384183,57233.0,57232.0,0.26552229]
[1720754311198,0.00083,57233.0,57232.0,0.26552229]
[1720754311400,0.04484116,57233.0,57232.0,0.26552229]
[1720754311578,0.00083,57233.0,57232.0,0.26552229]
[1720754311779,0.01384183,57233.0,57232.0,0.26901647]
[1720754311979,0.01384183,57233.0,57232.0,0.26552229]
[1720754311980,0.00083,57233.0,57232.0,0.26552229]
[1720754312191,0.04483676,57233.0,57232.0,0.26552229]
[1720754312436,0.03182493,57233.0,57232.0,0.26552229]
[1720754312647,0.03182493,57233.0,57232.0,0.38552229]
[1720754312648,0.04483676,57233.0,57232.0,0.38552229]
[1720754312960,0.04483676,57233.0,57232.0,0.42438087]
[1720754313540,0.03182493,57233.0,57232.0,0.42438087]
[1720754313763,0.03182493,57233.0,57232.0,0.26552229]
[1720754314167,0.04483676,57233.0,57232.0,0.26552229]
[1720754315180,0.04449641,57233.0,57232.0,0.26552229]
[1720754315586,0.04449696,57233.0,57232.0,0.26552229]
[1720754318683,0.41148366,57233.0,57232.0,0.016]
[1720754318818,0.366958,57227.0,57226.0,0.08694129]
[1720754319023,0.49767883,57227.0,57226.0,0.08694129]
[1720754319234,0.75555927,57227.0,57226.0,0.08694129]
[1720754319675,0.75555927,57227.0,57226.0,0.26725582]
[1720754319676,0.14396227,57227.0,57226.0,0.26725582]
[1720754320429,0.04396227,57227.0,57226.0,0.26725582]
[1720754320668,0.13172083,57227.0,57226.0,0.27725582]
[1720754320891,0.14495352,57227.0,57226.0,0.26602229]
[1720754321817,0.01423269,57227.0,57226.0,0.26602229]
[1720754322018,0.04580641,57227.0,57226.0,0.26602229]
[1720754322481,0.04680641,57227.0,57226.0,0.27702229]
[1720754323319,0.16912541,57227.0,57226.0,0.13573482]
[1720754323519,0.16912541,57227.0,57226.0,0.13242229]
[1720754323520,0.29444434,57227.0,57226.0,0.13242229]
[1720754324463,0.17212534,57227.0,57226.0,0.13242229]
[1720754324701,0.17212534,57227.0,57226.0,0.21022229]
[1720754324902,0.17212534,57227.0,57226.0,0.31489674]
[1720754324903,0.07212534,57227.0,57226.0,0.31489674]
[1720754325124,0.05889265,57227.0,57226.0,0.27292229]
[1720754325324,0.04054846,57227.0,57226.0,0.27292229]
[1720754325540,0.19423958,57227.0,57226.0,0.13242229]
[1720754325827,0.26286746,57227.0,57226.0,0.10794129]
[1720754326089,0.78392395,57227.0,57226.0,0.10794129]
[1720754326325,0.78392395,57227.0,57226.0,0.021]
[1720754326526,1.02856295,57227.0,57226.0,0.021]
[1720754326935,1.02856295,57227.0,57224.0,0.000913]
[1720754326936,0.951787,57225.0,57224.0,0.000913]
[1720754327152,0.122336,57219.0,57218.0,0.08694129]
[1720754327375,0.122339,57218.0,57217.0,0.08694129]
[1720754327545,0.74347349,57218.0,57217.0,0.08694129]
[1720754327752,0.75671745,57218.0,57217.0,0.11142229]
[1720754328410,1.00139545,57218.0,57217.0,0.08694129]
[1720754328578,0.611705,57217.0,57216.0,0.000913]
[1720754328803,0.244693,57215.0,57208.0,0.083]
[1720754328963,0.122358,57209.0,57208.0,0.19442229]
[1720754329140,0.122358,57209.0,57208.0,0.083]
[1720754329141,0.3990157,57209.0,57208.0,0.083]
[1720754329343,0.41222264,57209.0,57208.0,0.083]
[1720754329840,0.41222264,57209.0,57202.0,0.083]
[1720754329841,0.122371,57203.0,57202.0,0.083]
[1720754330042,0.122371,57203.0,57202.0,0.08694129]
[1720754330043,0.7437967,57203.0,57202.0,0.08694129]
[1720754330243,0.75698892,57203.0,57202.0,0.08694129]
[1720754330760,0.75698892,57203.0,57195.0,0.000913]
[1720754330761,0.122386,57196.0,57195.0,0.08785429]
[1720754330966,0.122386,57196.0,57195.0,0.000913]
[1720754330967,0.4990997,57196.0,57195.0,0.000913]
[1720754331176,1.09733805,57196.0,57195.0,0.000913]
[1720754331382,1.09733805,57196.0,57187.0,0.107481]
[1720754331383,0.367209,57188.0,57187.0,0.08694129]
[1720754331589,0.3991507,57188.0,57187.0,0.11142229]
[1720754331791,0.41230673,57188.0,57187.0,0.11142229]
[1720754332005,0.41253955,57188.0,57187.0,0.11142229]
[1720754333075,0.13555903,57188.0,57187.0,0.11142229]
[1720754333431,0.01415603,57188.0,57187.0,0.11142229]
[1720754333830,0.01315603,57188.0,57187.0,0.11142229]
[1720754334059,0.01315603,57188.0,57187.0,0.12256452]
[1720754334217,0.01315603,57188.0,57187.0,0.33117568]
[1720754334418,0.123388,57196.0,57195.0,0.11142229]
[1720754334624,0.223388,57196.0,57195.0,0.11142229]
[1720754334830,0.48130002,57196.0,57195.0,0.08694129]
[1720754335288,0.23552802,57196.0,57195.0,0.11142229]
[1720754335497,0.23552802,57196.0,57195.0,0.13031452]
[1720754335498,0.11314002,57196.0,57195.0,0.13031452]
[1720754335641,0.01314002,57196.0,57195.0,0.12931452]
[1720754335847,0.02567891,57196.0,57195.0,0.11042229]
[1720754336075,0.1,57196.0,57195.0,0.11042229]
[1720754336251,0.11314002,57196.0,57195.0,0.11042229]
[1720754336639,0.11614002,57196.0,57195.0,0.11042229]
[1720754336899,0.11614002,57196.0,57195.0,0.17042229]
[1720754337129,0.01714002,57196.0,57195.0,0.26747452]
[1720754337539,0.004,57196.0,57195.0,0.26747452]
[1720754337682,0.004,57196.0,57195.0,0.14747452]
[1720754338048,0.01706652,57196.0,57195.0,0.14747452]
[1720754338625,0.004,57196.0,57195.0,0.14747452]
[1720754338765,0.001,57196.0,57195.0,0.14747452]
[1720754338965,0.01383937,57196.0,57195.0,0.14747452]
[1720754339164,0.01583937,57196.0,57195.0,0.14747452]
[1720754339611,0.01583937,57196.0,57195.0,0.14838752]
[1720754339997,0.01583937,57196.0,57195.0,0.08685429]
[1720754340199,0.62576937,57196.0,57195.0,0.09185429]
[1720754340403,0.72576937,57196.0,57195.0,0.09185429]
[1720754340605,0.72576937,57196.0,57195.0,0.08685429]
[1720754341020,0.72676937,57196.0,57195.0,0.09185429]
[1720754341234,0.72576937,57196.0,57195.0,0.000913]
[1720754341439,0.97054137,57196.0,57195.0,0.000913]
[1720754342019,1.06606037,57196.0,57195.0,0.000913]
[1720754342363,1.06506037,57196.0,57195.0,0.000913]
[1720754342539,1.06506037,57196.0,57195.0,0.001913]
[1720754342903,1.06506037,57196.0,57195.0,0.004913]
[1720754343260,1.06506037,57196.0,57195.0,0.003913]
[1720754343566,1.06506037,57196.0,57195.0,0.005913]
[1720754343987,0.612005,57189.0,57188.0,0.08594129]
[1720754344133,0.712005,57189.0,57188.0,0.08594129]
[1720754344327,0.712005,57189.0,57184.0,0.0653]
[1720754344328,0.367209,57188.0,57187.0,0.08594129]
[1720754344529,0.467209,57188.0,57187.0,0.11042229]
[1720754344737,0.122405,57187.0,57185.0,0.08594129]
[1720754344938,0.367215,57187.0,57186.0,0.08594129]
[1720754345144,0.467215,57187.0,57186.0,0.11042229]
[1720754345570,0.222405,57187.0,57186.0,0.11042229]
[1720754346746,0.223405,57187.0,57186.0,0.11242229]
[1720754347401,0.224405,57187.0,57186.0,0.11242229]
[1720754348348,0.23724023,57187.0,57186.0,0.11242229]
[1720754348739,0.11483523,57187.0,57186.0,0.11242229]
[1720754349334,0.23724023,57187.0,57186.0,0.11242229]
[1720754350681,0.1409614,57187.0,57186.0,0.11242229]
[1720754350922,0.01483523,57187.0,57186.0,0.79263148]
[1720754351100,0.01483523,57187.0,57186.0,1.23744648]
[1720754351101,0.002,57187.0,57186.0,1.23744648]
[1720754351315,0.002,57187.0,57186.0,0.78956795]
[1720754351510,0.002,57187.0,57186.0,0.42540948]
[1720754352087,0.001,57187.0,57186.0,0.42340948]
[1720754352295,0.001,57187.0,57186.0,0.25688582]
[1720754352495,0.002,57187.0,57186.0,0.26038266]
[1720754352817,0.01595719,57187.0,57186.0,0.37731913]
[1720754353034,0.02592458,57194.0,57193.0,0.11042229]
[1720754353424,0.222386,57196.0,57195.0,0.08594129]
[1720754353623,0.467158,57196.0,57195.0,0.08594129]
[1720754353781,0.71193,57196.0,57195.0,0.08594129]
[1720754353992,0.222386,57196.0,57195.0,0.11042229]
[1720754354314,0.222386,57196.0,57195.0,0.08594129]
[1720754354637,0.71193,57196.0,57195.0,0.08594129]
[1720754355465,0.71193,57196.0,57195.0,0.11042229]
[1720754355670,0.467158,57196.0,57195.0,0.11042229]
[1720754355812,0.222386,57196.0,57195.0,0.11042229]
[1720754356255,0.467158,57196.0,57195.0,0.11042229]
[1720754357662,0.1,57196.0,57195.0,0.11342229]
[1720754357950,0.74236374,57199.0,57195.0,0.11342229]
[1720754357951,0.1,57197.0,57196.0,0.11348582]
[1720754358130,0.1,57198.0,57197.0,0.11042229]
[1720754358709,0.12560174,57199.0,57198.0,0.11042229]
[1720754358931,0.1,57199.0,57198.0,0.11042229]
[1720754359310,0.13339903,57199.0,57198.0,0.11042229]
[1720754359715,0.1,57199.0,57198.0,0.23042229]
[1720754359913,0.0250046,57200.0,57199.0,0.11042229]
[1720754360267,0.222365,57206.0,57199.0,0.11042229]
[1720754360598,0.222365,57206.0,57205.0,0.11042229]
[1720754360827,0.222365,57206.0,57205.0,0.10942229]
[1720754360828,0.25555339,57206.0,57205.0,0.10942229]
[1720754361085,0.50028239,57206.0,57205.0,0.10942229]
[1720754361747,0.15598771,57206.0,57205.0,0.10942229]
[1720754361971,0.367119,57202.0,57201.0,0.08594129]
[1720754362208,0.40018426,57202.0,57201.0,0.08594129]
[1720754363292,0.122384,57197.0,57196.0,0.08594129]
[1720754363497,0.61193,57196.0,57195.0,0.08594129]
[1720754363779,0.64499526,57196.0,57195.0,0.08594129]
[1720754363939,0.74499526,57196.0,57195.0,0.08594129]
[1720754364141,0.76000117,57196.0,57195.0,0.08594129]
[1720754364343,0.76000117,57196.0,57192.0,0.01230635]
[1720754364344,0.122392,57193.0,57192.0,0.08594129]
[1720754364542,0.367183,57192.0,57191.0,0.08594129]
[1720754364742,0.367183,57192.0,57189.0,0.08594129]
[1720754364743,0.244793,57191.0,57189.0,0.08594129]
[1720754364971,0.367203,57189.0,57188.0,0.08594129]
[1720754365241,0.4996556,57189.0,57188.0,0.08594129]
[1720754365444,0.5147647,57189.0,57188.0,0.08594129]
[1720754367422,0.244811,57187.0,57185.0,0.08900482]
[1720754367634,0.15496331,57186.0,57185.0,0.08900482]
[1720754367786,0.51476097,57186.0,57185.0,0.08900482]
[1720754367966,0.51476097,57186.0,57185.0,0.08594129]
[1720754368344,0.75957597,57186.0,57185.0,0.08594129]
[1720754368546,0.75957597,57186.0,57178.0,0.0604]
[1720754368547,0.122422,57179.0,57178.0,0.0604]
[1720754368754,0.03207951,57179.0,57178.0,0.16982229]
[1720754368922,0.122418,57181.0,57180.0,0.10942229]
[1720754369125,0.15449886,57181.0,57180.0,0.10942229]
[1720754369306,0.13208086,57181.0,57180.0,0.10942229]
[1720754369507,0.13208086,57181.0,57180.0,0.15507595]
[1720754369705,0.1,57181.0,57180.0,0.10942229]
[1720754370509,0.13695642,57181.0,57180.0,0.10942229]
[1720754370666,0.50421042,57181.0,57180.0,0.10942229]
[1720754370872,0.50421042,57181.0,57180.0,0.08594129]
[1720754371168,0.50521042,57181.0,57180.0,0.008]
[1720754371588,0.75004642,57181.0,57180.0,0.008]
[1720754371777,0.75013304,57181.0,57180.0,0.008]
[1720754372200,0.75113304,57181.0,57180.0,0.015]
[1720754372823,0.75013304,57181.0,57180.0,0.008]
[1720754373919,0.75013304,57181.0,57180.0,0.11742229]
[1720754373920,0.77540832,57181.0,57180.0,0.11742229]
[1720754374137,0.77440832,57181.0,57180.0,0.08594129]
[1720754374340,0.77440832,57181.0,57180.0,0.08588046]
[1720754374670,0.77440832,57181.0,57173.0,0.075097]
[1720754374671,0.16231832,57181.0,57173.0,0.075097]
[1720754374867,0.367293,57175.0,57174.0,0.09497746]
[1720754375058,0.467293,57175.0,57174.0,0.09497746]
[1720754375364,0.50313745,57175.0,57174.0,0.009097]
[1720754375517,0.712155,57175.0,57174.0,0.009097]
[1720754375717,0.7480004,57175.0,57174.0,0.009097]
[1720754376241,0.8445194,57175.0,57174.0,0.009097]
[1720754376445,0.9928624,57175.0,57174.0,0.009097]
[1720754377525,1.0971624,57175.0,57174.0,0.009097]
[1720754377753,0.122458,57162.0,57161.0,0.08588046]
[1720754377974,0.367375,57162.0,57161.0,0.10936146]
[1720754378124,0.76309667,57162.0,57161.0,0.10936146]
[1720754378323,0.76309667,57162.0,57161.0,0.08588046]
[1720754378526,0.72717364,57162.0,57161.0,0.08588046]
[1720754378846,0.122473,57155.0,57154.0,0.22558046]
[1720754379049,0.36742,57155.0,57154.0,0.22558046]
[1720754379402,0.122476,57154.0,57153.0,0.08588046]
[1720754379569,0.222476,57154.0,57153.0,0.08588046]
[1720754379892,0.857377,57151.0,57150.0,0.009108]
[1720754380100,0.957377,57151.0,57150.0,0.009108]
[1720754380248,1.41801293,57151.0,57150.0,0.009108]
[1720754380451,0.612455,57147.0,57146.0,0.11088046]
[1720754380657,0.612455,57147.0,57146.0,0.025]
[1720754380877,0.7273056,57147.0,57146.0,0.025]
[1720754381234,0.7273056,57147.0,57141.0,0.18886146]
[1720754381235,0.612507,57142.0,57141.0,0.18886146]
[1720754381463,0.467504,57142.0,57141.0,0.0795]
[1720754381716,0.72735699,57142.0,57141.0,0.18886146]
[1720754381907,0.72735699,57142.0,57141.0,0.0795]
[1720754382107,0.36753,57138.0,57137.0,0.009108]
[1720754382245,0.61255,57138.0,57137.0,0.009108]
[1720754382639,0.11479824,57138.0,57137.0,0.11846946]
[1720754382843,0.23730824,57138.0,57137.0,0.009108]
[1720754383048,0.72734824,57138.0,57137.0,0.009108]
[1720754383251,0.48232824,57138.0,57137.0,0.11846946]
[1720754383478,0.11479824,57138.0,57137.0,0.11846946]
[1720754383698,0.11479824,57138.0,57137.0,0.12446946]
[1720754383699,0.01579824,57138.0,57137.0,0.12446946]
[1720754383900,0.13830824,57138.0,57137.0,0.12446946]
[1720754384124,0.23830824,57138.0,57137.0,0.12446946]